fUST/lending_fUST_20240923
["ID","MTS","AMOUNT","RATE_DAILY","PERIOD"]
[338903608,1727047840983,-5218.98861639,0.00034799,9]
[338903609,1727047840993,-25257.24906475,0.000348,9]
[338903610,1727047841003,-1377.986,0.000348,30]
[338903611,1727047841012,-1288.88,0.000348,30]
[338903612,1727047841022,-500.0,0.00034959,15]
[338903613,1727047841032,-500.0,0.00034969,15]
[338903614,1727047841043,-500.0,0.00034969,15]
[338903615,1727047841054,-500.0,0.00034969,15]
[338903616,1727047841064,-500.0,0.00034969,15]
[338903617,1727047841074,-500.0,0.00034969,15]
[338903618,1727047841085,-151.0,0.0003497,14]
[338903619,1727047841096,-151.0,0.0003497,14]
[338903620,1727047841105,-151.0,0.0003497,14]
[338903621,1727047841116,-151.0,0.0003497,14]
[338903622,1727047841129,-151.0,0.0003497,14]
[338903623,1727047841138,-151.0,0.0003497,14]
[338903624,1727047841148,-500.0,0.00034989,15]
[338903625,1727047841157,-500.0,0.00034989,15]
[338903626,1727047841167,-500.0,0.00034989,15]
[338903627,1727047841178,-3000.0,0.00035,120]
[338903628,1727047841187,-533.17618188,0.00035121,120]
[338903629,1727047841196,-151.0,0.00035428,14]
[338903630,1727047841206,-225.77632994,0.0003545,2]
[338903631,1727047841215,-151.0,0.00035471,15]
[338903632,1727047841224,-1000.0,0.00035507,2]
[338903633,1727047841235,-151.0,0.0003554,14]
[338903634,1727047841245,-151.0,0.0003554,14]
[338903635,1727047841255,-500.0,0.00035559,7]
[338903636,1727047841264,-500.0,0.00035559,7]
[338903637,1727047841273,-620.0,0.00035559,7]
[338903638,1727047841282,-24965.9921602,0.0003556,5]
[338903639,1727047841295,-8518.9701444,0.0003556,5]
[338903640,1727047841304,-11975.20019599,0.0003556,5]
[338903652,1727047842869,-5781.78410552,0.0003555,3]
[338903653,1727047842982,-929.76,0.0003555,3]
[338903704,1727048017681,2900.0,0.000141,2]
[338903886,1727048792267,-157.42288929,0.000159,7]
[338903887,1727048792291,-15.46832688,0.00016,2]
[338903956,1727048961090,-984.53167312,0.00016,2]
[338903957,1727048961111,-3000.0,0.0001817,2]
[338903958,1727048961131,-300.0,0.00018653,2]
[338903959,1727048961152,-300.0,0.00018653,2]
[338903960,1727048961173,-2672.29414088,0.00018654,2]
[338903961,1727048964208,-22227.70585912,0.00018654,2]
[338903962,1727048964236,-2780.746963,0.00018781,2]
[338903963,1727048964257,-162.5753,0.00019175,2]
[338903964,1727048964279,-162.5753,0.00019266,2]
[338903965,1727048964303,-923.97826976,0.00019268,2]
[338903966,1727048964328,-266.5941953,0.00019296,2]
[338903974,1727049028616,333.967283,0.00019346,2]
[338903981,1727049031936,-162.5753,0.00019357,2]
[338903982,1727049031946,-162.5753,0.00019448,2]
[338903983,1727049031955,-2780.746963,0.00019466,2]
[338903984,1727049031965,-2295.3790318,0.00019526,2]
[338903985,1727049031974,-3318.0438548,0.00019526,2]
[338903986,1727049031983,-162.5753,0.00019539,2]
[338903988,1727049032005,-166.250462,0.00019581,2]
[338903991,1727049032016,-162.5753,0.00019629,2]
[338903993,1727049032026,-162.5753,0.0001972,2]
[338903994,1727049032035,-300.0,0.0001981,2]
[338903996,1727049032046,-300.0,0.0001981,2]
[338903999,1727049032056,-162.5753,0.00019811,2]
[338904001,1727049032066,-162.5753,0.00019902,2]
[338904002,1727049032077,-162.5753,0.00019993,2]
[338904003,1727049032086,-162.5753,0.00020084,2]
[338904004,1727049032098,-500.0,0.0002015,2]
[338904006,1727049032107,-220.3701052,0.0002015,2]
[338904007,1727049032118,-2780.746963,0.00020151,2]
[338904009,1727049032127,-162.5753,0.00020174,2]
[338904011,1727049032136,-1474.89726566,0.00020878,2]
[338904013,1727049032146,-420.0,0.00021575,2]
[338904014,1727049032155,-3000.0,0.000216,2]
[338904016,1727049032165,-3000.0,0.0002161,2]
[338904018,1727049032174,-3000.0,0.0002162,2]
[338904020,1727049032184,-317.81235454,0.0002163,2]
[338904062,1727049038312,-898.78971019,0.0002163,2]
[338904063,1727049038324,-1783.39793527,0.0002163,2]
[338904064,1727049038333,-25.81470204,0.0002164,2]
[338904065,1727049038347,-2974.18529796,0.0002164,2]
[338904066,1727049038356,-3000.0,0.0002165,2]
[338904067,1727049038365,-3000.0,0.0002166,2]
[338904068,1727049038374,-2125.2204055,0.0002167,2]
[338904102,1727049039983,-874.7795945,0.0002167,2]
[338904104,1727049039993,-3000.0,0.0002168,2]
[338904106,1727049040003,-1380.49799366,0.0002169,2]
[338904110,1727049040037,-3202.50398434,0.0002169,2]
[338904112,1727049040048,-420.0,0.00021791,2]
[338904115,1727049040060,-192.96396055,0.00021816,2]
[338904117,1727049040070,-171.74388,0.00021918,2]
[338904119,1727049040079,-923.97826969,0.00022501,2]
[338904121,1727049040090,-225.77632994,0.00023476,2]
[338904123,1727049040100,-587.0,0.00023497,2]
[338904125,1727049040110,-1149.25772225,0.00023576,2]
[338904127,1727049040120,-154.07273592,0.00024,2]
[338904129,1727049040131,-171.74388,0.00024482,2]
[338904131,1727049040141,-557.0,0.00025591,2]
[338904133,1727049040154,-923.97826969,0.00025734,2]
[338904135,1727049040163,-151.0,0.00027015,4]
[338904137,1727049040173,-371.414,0.00027049,15]
[338904140,1727049040183,-348.406572,0.00027397,2]
[338904142,1727049040193,-150.0,0.00027397,5]
[338904144,1727049040202,-150.0,0.000279,2]
[338904146,1727049040212,-151.0,0.00028423,5]
[338904148,1727049040221,-225.77632994,0.00028833,2]
[338904150,1727049040232,-923.97826969,0.00028967,2]
[338904152,1727049040242,-333.967283,0.00029019,2]
[338904154,1727049040254,-151.0,0.00029831,6]
[338904156,1727049040264,-151.0,0.00031239,7]
[338904158,1727049040273,-151.0,0.00032,30]
[338904160,1727049040283,-923.97826969,0.00032201,2]
[338904162,1727049040293,-152.33630927,0.00032496,2]
[338904163,1727049040302,-5000.0,0.000325,30]
[338904165,1727049040311,-151.0,0.00032647,7]
[338904167,1727049040321,-354.06770509,0.00032876,15]
[338904169,1727049040330,-156.0,0.00033,2]
[338904171,1727049040340,-150.0,0.00033021,14]
[338904173,1727049040350,-150.0,0.00033021,14]
[338904175,1727049040361,-200.0,0.00033021,14]
[338904177,1727049040371,-348.406572,0.00033165,2]
[338904179,1727049040381,-166.250462,0.00033307,2]
[338904181,1727049040390,-155.725397,0.00033404,14]
[338904183,1727049040400,-155.725397,0.00033404,14]
[338904185,1727049040409,-151.0,0.00033404,14]
[338904187,1727049040419,-151.0,0.00033404,14]
[338904189,1727049040429,-151.0,0.00034056,15]
[338904191,1727049040438,-225.77632994,0.0003419,2]
[338904193,1727049040449,-19712.35,0.0003426,3]
[338904195,1727049040459,-8845.75718508,0.0003426,3]
[338904197,1727049040472,-7581.19281492,0.0003426,3]
[338904199,1727049040482,-13689.13,0.0003426,3]
[338904201,1727049040492,-20934.66595348,0.0003427,5]
[338904203,1727049040503,-18481.35320842,0.0003427,5]
[338904205,1727049040516,-1126.8634763,0.0003427,5]
[338904207,1727049040525,-54306.541754,0.0003427,5]
[338904209,1727049040534,-151.0,0.0003429,14]
[338904211,1727049040545,-1257.4803,0.000343,120]
[338904213,1727049040554,-151.0,0.00034498,14]
[338904216,1727049040564,-151.0,0.00034498,14]
[338904218,1727049040573,-151.0,0.00034498,14]
[338904220,1727049040584,-151.0,0.00034498,14]
[338904222,1727049040594,-151.0,0.00034498,14]
[338904224,1727049040608,-151.0,0.00034498,14]
[338904226,1727049040618,-207.852701,0.00034498,14]
[338904228,1727049040628,-194.708166,0.00034498,14]
[338904230,1727049040637,-194.708166,0.00034498,14]
[338904232,1727049040646,-249.203709,0.00034498,14]
[338904234,1727049040658,-249.203709,0.00034498,14]
[338904236,1727049040667,-155.725397,0.00034498,14]
[338904238,1727049040677,-155.725397,0.00034498,14]
[338904240,1727049040686,-151.0,0.00034498,14]
[338904242,1727049040696,-151.0,0.00034498,14]
[338904244,1727049040706,-151.0,0.00034498,14]
[338904246,1727049040716,-962.194373,0.00034498,14]
[338904248,1727049040726,-962.194373,0.00034498,14]
[338904250,1727049040735,-151.0,0.00034498,14]
[338904252,1727049040746,-151.0,0.00034498,14]
[338904254,1727049040755,-151.0,0.00034498,14]
[338904256,1727049040765,-156.0,0.00034521,2]
[338904258,1727049040775,-6288.79122091,0.00034568,2]
[338904260,1727049040784,-500.0,0.00034616,120]
[338904262,1727049040794,-500.0,0.00034616,120]
[338904264,1727049040804,-600.74,0.00034616,120]
[338904266,1727049040814,-151.0,0.00034778,14]
[338904268,1727049040824,-151.0,0.00034778,14]
[338904270,1727049040834,-151.0,0.000348,14]
[338904272,1727049040845,-2671.42846158,0.000348,30]
[338904274,1727049040855,-6288.79122091,0.00034901,2]
[338904276,1727049040865,-151.0,0.00034928,2]
[338904278,1727049040875,-429.82908,0.00034928,14]
[338904280,1727049040884,-429.82908,0.00034928,14]
[338904282,1727049040894,-151.0,0.00034928,14]
[338904284,1727049040904,-500.0,0.00034989,7]
[338904286,1727049040914,-500.0,0.00034989,7]
[338904288,1727049040924,-620.0,0.00034989,7]
[338904290,1727049040934,-40542.8826382,0.0003499,5]
[338904292,1727049040943,-54306.541754,0.0003499,5]
[338904294,1727049040954,-151.0,0.00035,14]
[338904296,1727049040964,-962.194373,0.00035,14]
[338904298,1727049040973,-962.194373,0.00035,14]
[338904300,1727049040985,-151.0,0.00035,14]
[338904302,1727049040995,-5000.0,0.00035,35]
[338904304,1727049041005,-151.0,0.00035064,14]
[338904306,1727049041014,-150.0,0.00035106,2]
[338904308,1727049041024,-155.725397,0.00035137,14]
[338904310,1727049041034,-155.725397,0.00035137,14]
[338904312,1727049041047,-151.0,0.00035137,14]
[338904314,1727049041060,-151.0,0.00035137,14]
[338904316,1727049041071,-337.18790422,0.00035259,120]
[338904319,1727049041081,-151.0,0.00035274,2]
[338904321,1727049041092,-151.0,0.00035274,14]
[338904323,1727049041112,-429.82908,0.00035274,14]
[338904325,1727049041125,-429.82908,0.00035274,14]
[338904327,1727049041135,-151.0,0.00035274,14]
[338904329,1727049041146,-151.0,0.00035274,14]
[338904331,1727049041156,-245.05684,0.00035274,14]
[338904333,1727049041166,-187.223525,0.00035274,14]
[338904335,1727049041175,-194.708166,0.00035274,14]
[338904337,1727049041184,-194.708166,0.00035274,14]
[338904339,1727049041194,-249.203709,0.00035274,14]
[338904342,1727049041204,-249.203709,0.00035274,14]
[338904343,1727049041214,-155.725397,0.00035274,14]
[338904345,1727049041224,-155.725397,0.00035274,14]
[338904348,1727049041234,-151.0,0.00035274,14]
[338904350,1727049041245,-151.0,0.00035274,14]
[338904352,1727049041256,-230.766857,0.00035274,14]
[338904354,1727049041266,-962.194373,0.00035274,14]
[338904356,1727049041276,-962.194373,0.00035274,14]
[338904358,1727049041285,-6288.79122093,0.00035322,2]
[338904360,1727049041295,-151.0,0.00035372,14]
[338904362,1727049041305,-1000.0,0.00035386,2]
[338904364,1727049041318,-923.97826969,0.00035434,2]
[338904366,1727049041330,-151.0,0.00035456,2]
[338904369,1727049041342,-151.0,0.00035456,14]
[338904371,1727049041353,-429.82908,0.00035456,14]
[338904373,1727049041364,-429.82908,0.00035456,14]
[338904375,1727049041375,-151.0,0.00035456,14]
[338904377,1727049041385,-194.708166,0.00035456,14]
[338904379,1727049041395,-194.708166,0.00035456,14]
[338904381,1727049041405,-249.203709,0.00035456,14]
[338904383,1727049041418,-249.203709,0.00035456,14]
[338904386,1727049041428,-155.725397,0.00035456,14]
[338904388,1727049041438,-155.725397,0.00035456,14]
[338904390,1727049041448,-151.0,0.00035456,14]
[338904403,1727049041563,-962.194373,0.00035456,14]
[338904405,1727049041576,-962.194373,0.00035456,14]
[338904407,1727049041586,-151.0,0.00035464,15]
[338904409,1727049041596,-5218.98861639,0.00035465,9]
[338904411,1727049041605,-1602.40774736,0.00035465,9]
[338904419,1727049041673,-23820.69929358,0.00035465,9]
[338904422,1727049041684,-8802.4417425,0.00035465,5]
[338904536,1727049043038,-10134.30274664,0.00035465,5]
[338904541,1727049043144,-995.18527198,0.00035465,5]
[338904545,1727049043190,-4217.4800822,0.00035465,5]
[338904546,1727049045973,-320.0,0.00035465,5]
[338904547,1727049046026,-16073.47279488,0.00035465,5]
[338904548,1727049046038,-11357.62720516,0.00035465,5]
[338904561,1727049303160,2937.0,0.0001404,2]
[338904571,1727049603571,500.0,0.0001,2]
[338904572,1727049604018,175.34541832,0.0001,2]
[338904585,1727050003164,-978.09368743,0.00016,2]
[338904589,1727050166172,-21.90631257,0.00016,2]
[338904590,1727050166193,-1000.0,0.00016,2]
[338904613,1727050232134,-154.32020789,0.000213,2]
[338904614,1727050232144,-150.0,0.000214,2]
[338904615,1727050232154,-380.60822506,0.00021599,2]
[338904616,1727050232166,-1529.39177494,0.00021599,2]
[338904617,1727050232176,-154.32020789,0.00023261,2]
[338904618,1727050232185,-214.56801717,0.000237,2]
[338904714,1727050238805,-59.26613683,0.000237,2]
[338904715,1727050238817,-1686.7031405,0.0002386,2]
[338904717,1727050238827,-354.3915655,0.00023912,2]
[338904718,1727050238837,-3902.822343,0.00024138,2]
[338904719,1727050238846,-300.0,0.00024273,2]
[338904720,1727050238857,-7008.0525792,0.00024274,2]
[338904721,1727050238866,-166.516783,0.00024395,2]
[338904722,1727050238875,-166.516783,0.00024501,2]
[338904723,1727050238885,-166.516783,0.00024607,2]
[338904724,1727050238894,-262.9863174,0.00024649,2]
[338904725,1727050238904,-166.516783,0.00024713,2]
[338904726,1727050238914,-166.516783,0.00024819,2]
[338904727,1727050238924,-1090.51274951,0.00024823,2]
[338904756,1727050240387,-2812.30959349,0.00024823,2]
[338904757,1727050240396,-166.516783,0.00024925,2]
[338904758,1727050240406,-716.83650336,0.00025,30]
[338904759,1727050240417,-166.516783,0.00025031,2]
[338904760,1727050240426,-166.516783,0.00025137,2]
[338904761,1727050240440,-154.32020789,0.00025222,2]
[338904762,1727050240449,-166.516783,0.00025243,2]
[338904763,1727050240459,-166.516783,0.00025349,2]
[338904764,1727050240470,-166.516783,0.00025455,2]
[338904765,1727050240479,-3902.822343,0.00025508,2]
[338904766,1727050240489,-166.516783,0.0002556,2]
[338904767,1727050240499,-166.516783,0.00025666,2]
[338904768,1727050240508,-420.0,0.000267,2]
[338904769,1727050240517,-175.411401,0.00027071,2]
[338904770,1727050240526,-154.32020789,0.00027183,2]
[338904771,1727050240536,-650.0,0.00027246,2]
[338904772,1727050240545,-24900.0,0.00027247,2]
[338904773,1727050240554,-363.565914,0.00027397,2]
[338904774,1727050240564,-200.0,0.00027483,15]
[338904775,1727050240573,-150.0,0.000277,2]
[338904776,1727050240583,-180.0,0.00029371,2]
[338904777,1727050240592,-152.33630927,0.00032496,2]
[338904778,1727050240601,-297.131,0.00032795,33]
[338904779,1727050240610,-150.0,0.00033022,14]
[338904780,1727050240620,-150.0,0.00033022,14]
[338904781,1727050240629,-200.0,0.00033022,14]
[338904782,1727050240638,-3000.0,0.00033022,120]
[338904783,1727050240648,-3000.0,0.00033022,103]
[338904784,1727050240657,-3000.0,0.00033022,100]
[338904785,1727050240666,-363.565914,0.00033165,2]
[338904786,1727050240675,-151.0,0.0003426,14]
[338904787,1727050240684,-151.0,0.0003426,14]
[338904788,1727050240694,-151.0,0.0003427,14]
[338904789,1727050240703,-6501.41205656,0.0003439,2]
[338904790,1727050240713,-151.0,0.00034498,14]
[338904791,1727050240728,-500.0,0.00034616,120]
[338904792,1727050240738,-500.0,0.00034616,120]
[338904793,1727050240747,-600.74,0.00034616,120]
[338904794,1727050240756,-6501.41205656,0.00034729,2]
[338904795,1727050240874,-6501.41205656,0.00034943,2]
[338904796,1727050240884,-151.0,0.00035,14]
[338904797,1727050240894,-5000.0,0.00035,30]
[338904798,1727050240903,-206.32282412,0.00035,5]
[338904799,1727050240912,-6501.41205657,0.00035086,2]
[338904800,1727050240921,-610.06,0.00035193,3]
[338904801,1727050240932,-11407.61,0.00035254,3]
[338904802,1727050240941,-11407.61,0.00035264,3]
[338904803,1727050240950,-150.0,0.00035269,2]
[338904804,1727050240959,-226.701296,0.00035274,14]
[338904805,1727050240969,-1331.20340788,0.00035288,7]
[338904806,1727050240979,-151.0,0.00035466,14]
[338904807,1727050240988,-151.0,0.00035466,14]
[338904808,1727050240998,-151.0,0.00035468,15]
[338904809,1727050241007,-753.13129772,0.00035506,2]
[338904810,1727050241016,-273.834154,0.0003555,2]
[338904811,1727050241025,-2074.85047,0.00035555,120]
[338904812,1727050241035,-251.56001034,0.0003556,7]
[338904813,1727050241044,-517.0,0.000356,2]
[338904814,1727050241054,-151.0,0.00035607,14]
[338904815,1727050241063,-400.0,0.00035616,2]
[338904816,1727050241072,-1209.160216,0.00035616,120]
[338904817,1727050241081,-156.0,0.00036,2]
[338904818,1727050241090,-151.0,0.00036875,15]
[338904819,1727050241099,-1452.49982515,0.00037405,7]
[338904820,1727050241109,-1482.34914645,0.0003749,5]
[338904821,1727050241118,-48308.0062183,0.0003749,5]
[338904822,1727050241127,-5000.0,0.000375,40]
[338904823,1727050241136,-346.49185113,0.00037724,2]
[338904824,1727050241146,-151.0,0.00038282,15]
[338904825,1727050241155,-649.94,0.000383,14]
[338904826,1727050241164,-151.1,0.000388,7]
[338904827,1727050241173,-3015.66856431,0.000389,30]
[338904828,1727050241182,-363.565914,0.00038933,2]
[338904829,1727050241191,-150.0,0.00039,30]
[338904830,1727050241200,-150.112233,0.00039,7]
[338904831,1727050241209,-150.112233,0.000396,8]
[338904832,1727050241219,-151.0,0.00039689,15]
[338904833,1727050241228,-1482.34914645,0.0003981,5]
[338904834,1727050241237,-36508.73770549,0.0003981,6]
[338904880,1727050243425,-108.67707638,0.0003981,6]
[338905022,1727051241133,-352.209323,0.00027397,2]
[338905023,1727051241158,-154.32020789,0.000276,2]
[338905024,1727051241179,-151.1,0.000277,2]
[338905025,1727051241203,-151.0,0.00031284,7]
[338905026,1727051241225,-104.40847218,0.00032686,7]
[338905027,1727051297081,10096.0715768,0.000125,2]
[338905028,1727051317509,10551.87483603,0.00014,2]
[338905029,1727051317855,11556.34026891,0.0001,2]
[338905030,1727051319372,26748.19439855,0.000129,2]
[338905031,1727051355111,-478.45338864,0.000167,2]
[338905032,1727051355132,-414.04918633,0.00018242,2]
[338905033,1727051360140,-116.96830267,0.00018242,2]
[338905034,1727051360162,-569.12024981,0.0001889,2]
[338905035,1727051360183,-300.0,0.00018988,2]
[338905036,1727051360204,-300.0,0.00018988,2]
[338905037,1727051360226,-500.0,0.00018989,2]
[338905038,1727051360248,-500.0,0.00018989,2]
[338905039,1727051360271,-500.0,0.00018989,2]
[338905040,1727051360293,-500.0,0.00018989,2]
[338905041,1727051360433,-500.0,0.00018989,2]
[338905042,1727051360456,-500.0,0.00018989,2]
[338905043,1727051360478,-481.4027,0.00018989,2]
[338905044,1727051360501,-500.0,0.00018989,2]
[338905045,1727051360527,-500.0,0.00018989,2]
[338905046,1727051360550,-500.0,0.00018989,2]
[338905047,1727051360574,-41773.3741602,0.0001899,3]
[338905048,1727051360596,-33111.97838708,0.0001899,3]
[338905049,1727051361207,-12561.51749408,0.0001899,3]
[338905108,1727051432359,-300.0,0.00018989,2]
[338905110,1727051432369,-300.0,0.00018989,2]
[338905112,1727051432379,-2818.92687604,0.0001899,3]
[338905114,1727051432389,-610.06,0.0001899,3]
[338905116,1727051432399,-530.06,0.0001899,3]
[338905118,1727051432408,-33894.87630463,0.00019,2]
[338905121,1727051432421,-24613.44,0.00019,2]
[338905210,1727051438560,-553.48918889,0.00018999,2]
[338905211,1727051438576,-56517.9017322,0.00019,2]
[338905212,1727051438587,-893.6046056,0.0001999,2]
[338905213,1727051438930,-17057.48114403,0.0001999,2]
[338905214,1727051438944,-101592.33134614,0.0001999,2]
[338905215,1727051438953,-500.0,0.00019999,2]
[338905216,1727051438963,-500.0,0.00019999,2]
[338905217,1727051438972,-620.0,0.00019999,2]
[338905218,1727051438981,-3940.6337723,0.0002,9]
[338905239,1727051440450,-9572.12362185,0.0002,9]
[338905240,1727051440460,-21192.91795859,0.0002,2]
[338905241,1727051440470,-493.8566,0.00020247,2]
[338905242,1727051440479,-235.0,0.00020698,2]
[338905243,1727051440489,-300.0,0.00020888,2]
[338905244,1727051440498,-417.954128,0.00021872,2]
[338905245,1727051440508,-569.12024974,0.00022177,2]
[338905246,1727051440517,-417.954128,0.00022557,2]
[338905248,1727051440526,-150.99999954,0.00023,2]
[338905250,1727051440535,-417.954128,0.00023242,2]
[338905251,1727051440545,-569.12024974,0.00025464,2]
[338905253,1727051440554,-531.017489,0.00027363,2]
[338905255,1727051440565,-150.0,0.00027397,5]
[338905256,1727051440575,-569.12024974,0.00028751,2]
[338905257,1727051440585,-242.0,0.0003,2]
[338905258,1727051440594,-569.12024974,0.00032039,2]
[338905259,1727051440605,-46.59152782,0.00032686,7]
[338905260,1727051440615,-150.0,0.00033031,14]
[338905261,1727051440625,-150.0,0.00033031,14]
[338905262,1727051440636,-200.0,0.00033031,14]
[338905263,1727051440646,-266.77072152,0.00033031,7]
[338905264,1727051440656,-352.209323,0.00033165,2]
[338905265,1727051440666,-151.0,0.00034087,15]
[338905266,1727051440676,-152.33630927,0.00034192,7]
[338905267,1727051440686,-569.12024974,0.00035326,2]
[338905268,1727051440697,-151.0,0.00035489,15]
[338905269,1727051440707,-2349.9078533,0.0003555,2]
[338905270,1727051440716,-24900.0,0.00035604,2]
[338905271,1727051440726,-151.0,0.00035604,14]
[338905272,1727051440735,-151.0,0.00035604,14]
[338905273,1727051440745,-151.0,0.00035604,14]
[338905274,1727051440754,-151.0,0.00035604,14]
[338905275,1727051440764,-151.0,0.00035604,14]
[338905276,1727051440773,-151.0,0.00035604,14]
[338905277,1727051440784,-151.0,0.00035604,2]
[338905278,1727051440794,-151.0,0.00035604,14]
[338905279,1727051440803,-263.250644,0.00035604,14]
[338905280,1727051440812,-263.250644,0.00035604,14]
[338905281,1727051440823,-400.0,0.00035616,2]
[338905282,1727051440833,-1618.502531,0.00035616,120]
[338905283,1727051440842,-12177.99,0.00035616,3]
[338905284,1727051440851,-156.0,0.00036,2]
[338905285,1727051440862,-156.0,0.00036,2]
[338905286,1727051440872,-166.250462,0.00036343,2]
[338905287,1727051440882,-151.0,0.00036891,15]
[338905288,1727051440892,-237.705,0.00036986,47]
[338905289,1727051440901,-6714.0328922,0.00037268,2]
[338905290,1727051440910,-156.0,0.00037397,2]
[338905291,1727051440920,-6714.0328922,0.00037608,2]
[338905292,1727051440930,-6714.0328922,0.00037847,2]
[338905293,1727051440940,-6714.0328922,0.00038151,2]
[338905294,1727051440950,-5218.98861639,0.00038232,9]
[338905295,1727051440959,-41773.3741602,0.00038232,5]
[338905296,1727051440969,-48492.4227572,0.00038232,5]
[338905297,1727051440978,-151.0,0.00038232,14]
[338905298,1727051440987,-187.223525,0.00038232,14]
[338905299,1727051440997,-151.0,0.00038232,14]
[338905300,1727051441006,-151.0,0.00038232,14]
[338905301,1727051441016,-151.0,0.00038232,14]
[338905302,1727051441026,-151.0,0.00038232,14]
[338905303,1727051441035,-151.0,0.00038232,2]
[338905304,1727051441044,-151.0,0.00038232,14]
[338905305,1727051441054,-263.250644,0.00038232,14]
[338905306,1727051441063,-263.250644,0.00038232,14]
[338905307,1727051441075,-151.0,0.00038293,15]
[338905308,1727051441085,-151.0,0.00038333,14]
[338905309,1727051441095,-151.0,0.00038333,14]
[338905310,1727051441104,-151.0,0.00038333,14]
[338905311,1727051441114,-151.0,0.00038333,14]
[338905312,1727051441123,-151.0,0.00038333,2]
[338905313,1727051441133,-263.250644,0.00038333,14]
[338905314,1727051441142,-6714.0328922,0.00038572,2]
[338905315,1727051441152,-569.12024974,0.00038613,2]
[338905316,1727051441162,-150.0,0.00038631,2]
[338905317,1727051441171,-6714.03289225,0.0003867,2]
[338905318,1727051441180,-500.0,0.0003881,120]
[338905319,1727051441190,-500.0,0.0003881,120]
[338905320,1727051441198,-600.74,0.0003881,120]
[338905321,1727051441209,-753.13129772,0.00038932,2]
[338905322,1727051441218,-352.209323,0.00038933,2]
[338905323,1727051441227,-325.43923546,0.00039,7]
[338905324,1727051441237,-150.0,0.00039,30]
[338905325,1727051441246,-1932.807,0.00039,120]
[338905326,1727051441256,-1452.36690419,0.00039611,11]
[338905327,1727051441266,-2000.0,0.00039689,15]
[338905328,1727051441275,-151.0,0.00039694,15]
[338905329,1727051441285,-3000.0,0.0003981,6]
[338905330,1727051441295,-151.0,0.00039841,14]
[338905331,1727051441304,-150.0,0.0004,30]
[338905332,1727051441313,-5000.0,0.0004,60]
[338905333,1727051441325,-151.0,0.0004,14]
[338905334,1727051441334,-204.38574838,0.0004,7]
[338905335,1727051441343,-154.5341713,0.00040356,2]
[338905336,1727051441352,-533.17618188,0.00040422,120]
[338905337,1727051441361,-341.09129461,0.00040907,2]
[338905338,1727051441370,-400.0,0.00040952,2]
[338905339,1727051441380,-1000.0,0.00040956,2]
[338905340,1727051441392,-151.0,0.00040996,14]
[338905341,1727051441401,-151.0,0.00040996,14]
[338905342,1727051441411,-151.0,0.00040996,14]
[338905343,1727051441420,-151.0,0.00040996,14]
[338905344,1727051441429,-151.0,0.00040996,2]
[338905345,1727051441438,-263.250644,0.00040996,14]
[338905346,1727051441447,-35705.34404404,0.00040996,6]
[338905347,1727051441539,-972.0,0.00040996,6]
[338905384,1727051443420,-263.250644,0.00038333,14]
[338905386,1727051443430,-10148.32,0.00040986,3]
[338905388,1727051443439,-263.250644,0.00040996,14]
[338905390,1727051443449,-5096.03011616,0.00040996,6]
[338905391,1727051443460,-48492.4227572,0.00040996,6]
[338905393,1727051443469,-200.0,0.00041,30]
[338905395,1727051443478,-10233.95154181,0.00041,120]
[338905397,1727051443488,-7962.40817027,0.00041006,6]
[338905441,1727051446384,-1680.54497872,0.00041006,6]
[338905453,1727051482118,854.59,0.000141,2]